Cogmind - Beta 13 @@@ ROGUE MODE // 2024.04.01 @ 23:08:34 Player: fippe Result: Destroyed by Z1-YV4(R) with Subdweller Machine Gun Performance ------------- Evolutions (0) 0 Regions Visited (2) 400 Robots Destroyed (15) 75 Value Destroyed (225) 225 Prototype IDs (0) 0 Alien Tech Used (0) 0 Bonus (0) 0 TOTAL SCORE: 700 Bonus ------- None Cogmind --------- Core Integrity 0/250 Matter 290/300 Energy 238/250 System Corruption 2% Temperature Cool (0) Movement Treading (160) Location -10/Subcaves Parts ------- > --- POWER (1) -------- Ion Engine > --- PROPULSION (2) --- Light Treads Light Treads > --- UTILITY (2) ------ Large Storage Unit Subdweller Optics > --- WEAPON (2) ------- (None) > --- INVENTORY (15) --- Compact Wheel Compact Wheel Large Storage Unit Structural Scanner Visual Processing Unit Weapon Shielding Light Armor Plating Scrap Shield Medium Laser Assault Rifle Grenade Launcher Peak State ------------ > --- POWER ------------ Ion Engine > --- PROPULSION ------- Light Treads Light Treads > --- UTILITY ---------- Large Storage Unit Subdweller Optics > --- WEAPON ----------- Light Assault Rifle Light Assault Rifle > --- INVENTORY -------- Light Treads Compact Wheel Compact Wheel Large Storage Unit Structural Scanner Visual Processing Unit Weapon Shielding Light Armor Plating Scrap Shield Medium Laser Assault Rifle Grenade Launcher [Rating: 9] Favorites ----------- Power Ion Engine Engine Ion Engine Propulsion Light Treads Treads Light Treads Utility Targeting Computer Device Subdweller Optics Storage Large Storage Unit Processor Targeting Computer Weapon Light Assault Rifle Energy Gun Medium Laser Ballistic Gun Light Assault Rifle Launcher Grenade Launcher Build | -11 -10 -10 ------- Run | Yrd Mat Sub Slots Evolved . | . . . Power . | . . . Propulsion . | . . . Utility . | . . . Weapon . | . . . Parts Attached 14 | 6 6 2 Power 3 | 2 1 . Engine 3 | 2 1 . Core . | . . . Reactor . | . . . Propulsion 3 | 2 . 1 Treads 3 | 2 . 1 Leg . | . . . Wheel . | . . . Hover . | . . . Flight . | . . . Utility 3 | . 2 1 Device 1 | . . 1 Storage 1 | . 1 . Processor 1 | . 1 . Hackware . | . . . Protection . | . . . Artifact . | . . . Weapon 5 | 2 3 . Energy Gun 1 | 1 . . Energy Cannon . | . . . Ballistic Gun 3 | 1 2 . Ballistic Cannon . | . . . Launcher 1 | . 1 . Special Weapon . | . . . Impact Weapon . | . . . Slashing Weapon . | . . . Piercing Weapon . | . . . Special Melee Weapon . | . . . Unidentified Prototypes . | . . . Parts Lost 3 | . . 3 Power . | . . . Propulsion 1 | . . 1 Utility . | . . . Weapon 2 | . . 2 Highest Loss Streak 3 | . . 3 To Critical Strikes 1 | . . 1 Average Slot Usage (%) 94 | . 94 94 Engine 14 | . 14 14 Treads 27 | . 28 26 Storage 10 | . 10 14 Processor 11 | . 12 2 Ballistic Gun 20 | . 19 26 Launcher 7 | . 7 . Naked Turns . | . . . Heaviest Build 29 | 8 29 29 Greatest Support 40 | 40 40 40 Greatest Overweight (x) 1 | . . 1 Average Overweight (x) . | . . . Largest Inventory Capacity 15 | 5 15 15 Average Capacity 12 | 5 12 15 Most Carried 13 | 3 13 13 Average Carried 7 | 1 7 12 Final Capacity 15 | 5 15 15 Final Carried 12 | 3 11 12 Class Distribution -------------------- 100% | Mutant Dominant Class ---------------- Mutant | -10/Materials Mutant | -10/Subcaves Resources | -11 -10 -10 ----------- Run | Yrd Mat Sub Matter Collected 523 | 194 284 45 Remotely . | . . . Salvage Created 296 | . 296 . Parts 25 | . 25 . Haulers Intercepted . | . . . Recyclers Shooed . | . . . Parts Field Recycled . | . . . Retrieved Matter . | . . . Parts Self-Destructed . | . . . Prevented . | . . . Kills | -11 -10 -10 ------- Run | Yrd Mat Sub Combat Hostiles Destroyed 12 | . 12 . Guns 9 | . 9 . AOE 3 | . 3 . Classes Destroyed 4 | . 4 . Worker 1 | . 1 . Watcher 2 | . 2 . Swarmer 9 | . 9 . Grunt 3 | . 3 . Best Kill Streak 4 | . 4 . Combat Bots Only 3 | . 3 . Max Kills in Single Turn 1 | . 1 . Gunslinging . | . . . Exploded 1 | . 1 . Melee . | . . . Uniques/NPCs Destroyed . | . . . Combat | -11 -10 -10 -------- Run | Yrd Mat Sub Hostile Shots Fired 80 | . 43 37 Missed 20 | . 8 12 Damage Taken 888 | . 289 599 Core 253 | . 34 219 Absorbed by Shields . | . . . Core Remaining (%) 100 | 100 . . Volleys Fired 47 | . 47 . Largest 2 | . 2 . Hottest 70 | . 70 . Shots Fired 76 | . 76 . Gun 67 | . 67 . Cannon . | . . . Launcher 9 | . 9 . Special . | . . . Kinetic 66 | . 66 . Thermal 1 | . 1 . Explosive 9 | . 9 . Electromagnetic . | . . . Robot Hit Streak 7 | . 7 . Robot Miss Streak 3 | . 3 . Penetration Max . | . . . Secondary Targets 1 | . 1 . Max Gunslinging Chain 1 | . 1 . Shots Hit Robots 44 | . 44 . Core Hits 26 | . 26 . Critical Kills . | . . . Critical Parts Destroyed . | . . . Critical Strikes . | . . . Melee Attacks . | . . . Impact . | . . . Slashing . | . . . Piercing . | . . . Sneak Attacks . | . . . Combat Hostiles . | . . . Follow-up Attacks . | . . . Damage Inflicted 525 | . 525 . Guns 327 | . 327 . Cannons . | . . . Explosions 194 | . 194 . Melee . | . . . Ramming 4 | . 4 . Kinetic 327 | . 327 . Thermal . | . . . Explosive 194 | . 194 . Electromagnetic . | . . . Impact . | . . . Slashing . | . . . Piercing . | . . . Highest Corruption 2 | . 2 2 Average Corruption 2 | . 2 2 Corruption Purged . | . . . Corruption Blocked . | . . . Effects 20 | . 17 3 Message Errors 6 | . 5 1 Matter Fused 6 | . 5 1 Heat Flow Errors 3 | . 3 . Energy Discharges 1 | . . 1 Parts Fused 1 | . 1 . Data Loss (minor) 1 | . 1 . Data Loss (major) 1 | . 1 . Alerts 1 | . 1 . Overload Shots . | . . . Overflow Damage . | . . . Projectiles . | . . . Explosions . | . . . Melee . | . . . Knockbacks . | . . . Impact . | . . . Kinetic . | . . . Secondary . | . . . Self-Inflicted Damage . | . . . Shots . | . . . Rammed 1 | . 1 . Targets Rammed 1 | . 1 . Kicked . | . . . Crushed . | . . . Highest Temperature 185 | . 185 . Average Temperature 48 | . 48 . Received Heat Transfer 81 | . 12 69 Siege Activations . | . . . Robots Corrupted . | . . . Combat Hostiles . | . . . Parts Fried . | . . . Impact Corruptions . | . . . Robots Melted . | . . . Combat Hostiles . | . . . Parts Melted . | . . . Heat Transferred . | . . . Parts Sabotaged . | . . . Parts Stolen . | . . . Parts Stripped . | . . . Power Chain Reactions . | . . . Alert | -11 -10 -10 ------- Run | Yrd Mat Sub Peak Influence 206 | . 206 . Initial . | . . . Average 82 | . 88 . Maximum Alert Level 1 | . 1 . Low Security (%) 94 | 100 94 . Level 1 5 | . 5 . Level 2 . | . . . Level 3 . | . . . Level 4 . | . . . Level 5 . | . . . High Security . | . . . Max Security . | . . . Squads Dispatched 2 | . 2 . Investigation 1 | . 1 . Extermination . | . . . Reinforcement 1 | . 1 . Assault . | . . . Garrison . | . . . Intercept . | . . . Searches Triggered . | . . . Construction Impeded . | . . . Haulers Reinforced . | . . . Active Scanning Responses . | . . . Cargo Convoy Interrupts . | . . . Stealth | -11 -10 -10 --------- Run | Yrd Mat Sub Distress Signals 1 | . 1 . Communications Jammed . | . . . Distress Signals . | . . . Times Spotted 32 | . 19 13 Peak Tracking Total 13 | . 3 13 Tactical Retreats 2 | . 2 . Traps | -11 -10 -10 ------- Run | Yrd Mat Sub Traps Triggered 1 | . 1 . Indirectly . | . . . Trap Hack Attempts . | . . . Triggered . | . . . Disarmed . | . . . Reprogrammed . | . . . Reused . | . . . Traps Extracted . | . . . Installed . | . . . Triggered . | . . . Machines | -11 -10 -10 ---------- Run | Yrd Mat Sub Machines Disabled . | . . . Max in Single Turn . | . . . Machines Repaired . | . . . Machines Dismantled . | . . . Machines Sabotaged . | . . . Overloaded Fab Kills . | . . . Hacking | -11 -10 -10 --------- Run | Yrd Mat Sub Machines Accessed 6 | . 6 . Terminals 5 | . 5 . Fabricators . | . . . Repair Stations 1 | . 1 . Recycling Units . | . . . Scanalyzers . | . . . Garrison Access . | . . . Total Hacks 15 | . 15 . Successful 7 | . 7 . Failed 8 | . 8 . Catastrophic . | . . . Database Lockouts . | . . . Manual . | . . . Terminals 14 | . 14 . Fabricators . | . . . Repair Stations 1 | . 1 . Recycling Units . | . . . Scanalyzers . | . . . Garrison Access . | . . . Terminal Hacks 7 | . 7 . Robot Analysis 1 | . 1 . Emergency Access Points 1 | . 1 . Alert Level 2 | . 2 . Locate Traps 1 | . 1 . Dispatch Records 1 | . 1 . Zone Layout 1 | . 1 . Fabricator Hacks . | . . . Repair Station Hacks . | . . . Recycling Unit Hacks . | . . . Scanalyzer . | . . . Garrison Access Hacks . | . . . Unauthorized Hacks . | . . . Terminals . | . . . Fabricators . | . . . Repair Stations . | . . . Recycling Units . | . . . Scanalyzers . | . . . Garrison Access . | . . . Data Cores Recovered . | . . . Used . | . . . Hacking Detections 5 | . 5 . Full Trace Events 1 | . 1 . Feedback Events . | . . . Feedback Blocked . | . . . Robot Schematics Acquired . | . . . Robots Built . | . . . Authchips . | . . . Time . | . . . Total Robot Build Rating . | . . . Part Schematics Acquired . | . . . Parts Built . | . . . Authchips . | . . . Time . | . . . Total Part Build Rating . | . . . Parts Repaired . | . . . Time . | . . . Parts Recycled . | . . . Recycled Matter . | . . . Retrieved Matter . | . . . Retrieved Components . | . . . Parts Scanalyzed . | . . . Part Schematics Acquired . | . . . Parts Damaged . | . . . Bothacking | -11 -10 -10 ------------ Run | Yrd Mat Sub Used RIF Installer . | . . . Robots Hacked . | . . . Non-combat . | . . . Combat . | . . . Robot Hacks Applied . | . . . Relay Couplers Released . | . . . Fabnet Peak Effective % . | . . . Robots Rewired . | . . . Allies Hacked . | . . . Hacks Repelled . | . . . Allies | -11 -10 -10 -------- Run | Yrd Mat Sub Total Allies . | . . . Largest Group . | . . . Highest-Rated Group . | . . . Highest-Rated Ally . | . . . Total Orders . | . . . Ally Attacks . | . . . Total Damage . | . . . Kills . | . . . Allies Corrupted . | . . . Allies Melted . | . . . Intel | -11 -10 -10 ------- Run | Yrd Mat Sub Robot Analysis Total 1 | . 1 . Derelict Logs Recovered . | . . . Drone Launches . | . . . Drone Recoveries . | . . . Exploration | -11 -10 -10 ------------- Run | Yrd Mat Sub Turns Passed 1383 | 80 1191 112 Spaces Moved 716 | 46 619 51 Core 3 | 3 . . Treads 713 | 43 619 51 Legs . | . . . Wheels . | . . . Hover . | . . . Flight . | . . . Fastest Speed 50 | 50 160 160 Average Speed 159 | 152 160 164 Slowest Speed 240 | 160 160 240 Overloaded Moves . | . . . Propulsion Burnouts . | . . . Robots Hopped . | . . . Cave-ins Triggered . | . . . Exploration Rate (%) 31 | 4 82 8 Regions Visited 2 Branch Regions 1 Pre-discovered Areas . | . . . Known Exits Taken . | . . . Unknown Exits Taken 2 | 1 1 . Scrap Searched . | . . . Spaces Dug 18 | . 18 . Terrain Destroyed 51 | . 51 . Melee . | . . . Projectile . | . . . AOE 51 | . 51 . Terrain Rammed . | . . . Walls Destroyed . | . . . Machines Disabled . | . . . Actions | -11 -10 -10 --------- Run | Yrd Mat Sub Total 889 | 53 757 79 Wait 94 | . 70 24 Move 714 | 45 618 51 Hop . | . . . Pick Up 13 | 2 10 1 Fast Attach 8 | 5 2 1 Attach 3 | . 2 1 Detach 2 | . 2 . Swap 3 | 1 2 . Drop 4 | . 3 1 Fire 47 | . 47 . Melee . | . . . Ram . | . . . Kick . | . . . Crush 1 | . 1 . Escape Stasis . | . . . Rewire . | . . . Trap . | . . . Miscellaneous . | . . . Route ------- -11/Scrapyard -10/Materials (discovered 4 exits: [*Mat] / [*Min x2] / [*Sub]) -10/Subcaves History --------- Turn | Location | Event 12 | -11/Scrapyard | Discovered new exit (range 15) 81 | -11/Scrapyard | Entered Materials 154 | -10/Materials | Discovered new exit (range 7) 253 | -10/Materials | Discovered new exit (range 19) 253 | -10/Materials | Discovered new exit (range 15) 300 | -10/Materials | Build established: Mutant 739 | -10/Materials | Discovered new exit (range 13) 1272 | -10/Materials | Entered Subcaves 1371 | -10/Subcaves | Ambushed by swarm of Subdwellers 1371 | -10/Subcaves | Ambushed by Subdwellers from Twisted Machinery 1371 | -10/Subcaves | Ambushed by Subdwellers from Twisted Machinery 1371 | -10/Subcaves | Ambushed by Subdwellers from Twisted Machinery 1371 | -10/Subcaves | Ambushed by Subdwellers from Twisted Machinery 1371 | -10/Subcaves | Ambushed by Subdwellers from Twisted Machinery 1374 | -10/Subcaves | Disturbed a concealed Subdweller 1378 | -10/Subcaves | Core integrity fell below 50% 1381 | -10/Subcaves | Core integrity fell below 20% 1384 | -10/Subcaves | Destroyed by Z1-YV4(R) with Subdweller Machine Gun Last Messages --------------- Twisted Machinery. 01371_ Z1-YV4(R) angrily emerges from the Twisted Machinery. 01371_ A8-S25(R) angrily emerges from the Twisted Machinery. 01371_ 3L-96N(h) suffers critical hit (Destroy). 01371_ 3L-96N(h) destroyed. 01374_ IH-POW(R) angrily emerges from the Twisted Machinery. 01375_ Critical hit (Destroy). 01375_ Lgt. Treads destroyed. 01376_ F1-8LJ(R) emerges from the Twisted Machinery. 01379_ Lgt. Assault Rifle destroyed. 01380_ 19-09X(R) destroyed. 01381_ D&09SGHBSHBF85VT/GIA/AG 6S>F|D<=KM#8CET 01382_ Lgt. Assault Rifle destroyed. 01383_ PO-TFB(R) suffers critical hit (Burn). 01384_ QJ-OUG(g) destroyed. 01384_ PO-TFB(R) destroyed. Map ----- +----------------------------------------------------+ | ?????????????????????????????????????????????? | | ?????????????????????????????????????????????? | | ?????????????????????????????????????????????? | | ?????????????????????????????????????????????? | | ?????????????????????????????????????????????? | | ?????????????????????????????????????????????? | | ?????????????????????????????????????????????? | | ?????????????????????????????????????????????? | | ?????????????????????????????????????????????? | | ?????????????????????????????????????????????? | | ?????????????????????????????????????????????? | | ?????????????????????????????????????????????? | | ????????????????????????#??#?????????????????? | | ???????????????????????# ?# #????????????????? | | ??????????????????????# ?# ????????????????? | | ????????????????????## ?# #####???????????? | | ???????????????????## ### ???????????? | | ???????????????????? ## ????????????? | | ???????????????????? ????????????? | | ???????????????????? ????????????? | | ???????????????????? ?# ???###?####### | | ????????????????????# #?# ?## #?# ## # | | ???????????????????? ### #?# #?# | | ???????????????????## #?# ### #??# | | ???????????????????# ##??# ## #???# # | | ???????????????????# @ #??# #??## # | | ???????????????###### #??# #### | | ????????????#??#""""; ## | | ???????????##$##" R #?# | | ???????????# "$" ## #### | | ???????????## !RRR & = ;# ## | | ???????????#$&"#"!%RR !% %% % *& | | ???????????##$#" ! R * &%% | | ????????????#?#" ## | | ??????????????#" ;;; ;# ### | | ??????????????#"";;### ;;# #?# | | ??????????????####### ;# ## | | ???????????????????# ;## | | ???????????????????# ;;### | | ???????????????????## #;; ;;#?# | | ????????????????????# ####; ;## ## ## | | ????????????????????## ###???;;;;#?########### | | ?????????????????????###??????#??????????????? | | ?????????????????????????????????????????????? | | ?????????????????????????????????????????????? | | ?????????????????????????????????????????????? | | ?????????????????????????????????????????????? | | ?????????????????????????????????????????????? | | ?????????????????????????????????????????????? | | ?????????????????????????????????????????????? | +----------------------------------------------------+ Best States ------------- Heat Dissipation 25 Energy Generation 10 Energy Capacity 250 Matter Stores 300 Matter Capacity 300 Sight Range 21 Terrain Scan Density 10 Evasion (%) 40 Targeting Accuracy 5 Recoil Reduction 2 Item Schematics ----------------- None Robot Schematics ------------------ None Fabricated ------------ Nothing Alien Tech Used ----------------- None Achievements -------------- None Challenges ------------ None Game ------ Seed HardenedAutogunBoregun Manual? 0 Play Time 00:16:54 Cumulative 9.0 hours Start 2024.04.01 @ 22:50:16 End 2024.04.01 @ 23:08:34 Sessions 1 Manual Loads 0 Difficulty Rogue Special Mode None Game No. 12 Rogue 12 Adventurer 0 Explorer 0 Win Type - Total 0 Types 0/0/0/0/0/0/0/0/0 Lore% 15 Gallery% 16 Achievement% 16 Wizard Run 0 Options --------- Layout 1 ASCII 0 Keyboard 0 Movement Mouse Keybinds 0 Fullscreen 1 Font 24/Smallcaps Map View 50x35 Zoom Use 0% Tactical HUD 1 Map Filters NONE Filters NONE Steam 1 RUN: 53371d04-d6da-4afe-952a-7d950383a9fc